bitfinex/quotes_SOLUSD_20251120
["timestamp","ask_amount","ask_price","bid_price","bid_amount"]
[1763633286368,25.86423281,141.78,141.75,0.71]
[1763633286674,0.69,141.77,141.73,0.71]
[1763633287006,4.87979597,141.77,141.73,4.89979597]
[1763633287291,0.69,141.77,141.73,4.89979597]
[1763633287497,43.49718527,141.78,141.74,4.89979597]
[1763633287709,42.80718527,141.78,141.75,4.18979597]
[1763633288002,16.34862366,141.8,141.75,4.18979597]
[1763633288003,7.05286711,141.79,141.77,4.18979597]
[1763633288370,7.05286711,141.79,141.77,4.89979597]
[1763633288992,18.12096,141.79,141.78,4.89979597]
[1763633289194,18.12096,141.79,141.78,4.18979597]
[1763633289700,7.05173679,141.81,141.78,4.89979597]
[1763633289995,7.05173679,141.81,141.79,0.71]
[1763633290195,7.05173679,141.81,141.78,4.18979597]
[1763633290376,7.05173679,141.81,141.78,4.89979597]
[1763633290876,7.05173679,141.81,141.79,4.18979597]
[1763633291076,7.05173679,141.81,141.79,4.89979597]
[1763633291293,7.05173679,141.81,141.79,0.71]
[1763633291499,16.84019214,141.82,141.79,4.18979597]
[1763633291702,16.84019214,141.82,141.8,4.89979597]
[1763633292088,18.12096,141.81,141.79,1.68]
[1763633292716,18.12096,141.81,141.8,0.71]
[1763633293205,7.0509106,141.83,141.8,0.71]
[1763633293378,7.0509106,141.83,141.81,4.18979597]
[1763633293579,7.0509106,141.83,141.8,4.89979597]
[1763633293893,24.67641679,141.84,141.8,4.89979597]
[1763633294093,24.67641679,141.84,141.81,0.71]
[1763633294286,4.87979597,141.83,141.79,1.68]
[1763633294591,18.12096,141.81,141.79,2.39]
[1763633294796,18.12096,141.81,141.79,1.68]
[1763633294972,18.12096,141.81,141.79,2.39]
[1763633295178,18.12096,141.81,141.79,0.71]
[1763633295500,18.12096,141.81,141.79,4.89979597]
[1763633297080,25.17266952,141.81,141.79,0.71]
[1763633297682,18.12096,141.81,141.79,0.71]
[1763633298297,18.12096,141.81,141.79,4.89979597]
[1763633298823,19.31463251,141.84,141.8,4.89979597]
[1763633299027,0.2,141.86,141.83,4.18979597]
[1763633299227,0.2,141.86,141.83,4.89979597]
[1763633299228,18.12096,141.84,141.83,4.89979597]
[1763633299517,0.2,141.86,141.83,4.18979597]
[1763633299721,0.2,141.86,141.85,4.18979597]
[1763633299910,0.2,141.86,141.85,4.89979597]
[1763633302439,0.2,141.86,141.85,6.57979597]
[1763633303916,0.2,141.86,141.85,4.89979597]
[1763633304137,0.2,141.86,141.85,6.57979597]
[1763633305514,0.2,141.86,141.85,4.89979597]
[1763633307606,0.2,141.86,141.85,11.94949635]
[1763633308528,0.2,141.86,141.85,4.89979597]
[1763633309727,18.12096,141.84,141.75,39.46082456]
[1763633309946,22.31075597,141.84,141.79,4.87979597]
[1763633310118,18.12096,141.79,141.75,0.69]
[1763633310320,18.12096,141.79,141.66,7.8923755]
[1763633310321,18.12096,141.75,141.69,0.69]
[1763633310632,11.24646099,141.71,141.67,4.87979597]
[1763633310845,11.24646099,141.71,141.67,0.69]
[1763633310846,4.18979597,141.7,141.67,0.69]
[1763633311215,4.18979597,141.7,141.66,5.86979597]
[1763633311216,4.18979597,141.69,141.66,1.68]
[1763633311410,4.18979597,141.69,141.66,2.37]
[1763633312218,4.18979597,141.7,141.67,0.69]
[1763633312618,11.24727362,141.7,141.67,0.69]
[1763633312818,18.17800504,141.7,141.67,0.69]
[1763633313738,11.12052739,141.69,141.67,0.69]
[1763633313933,18.17800504,141.7,141.67,0.69]
[1763633314133,11.12052739,141.68,141.63,0.69000001]
[1763633314443,29.24148739,141.67,141.64,1.68]
[1763633314637,11.12052739,141.66,141.64,1.68]
[1763633315027,11.12052739,141.66,141.64,2.37]
[1763633315334,11.12052739,141.66,141.64,1.68]
[1763633315520,11.12052739,141.67,141.64,2.37]
[1763633316414,25.88919698,141.68,141.64,1.68]
[1763633316650,25.88919698,141.68,141.64,9.43010343]
[1763633316651,11.12052739,141.67,141.64,9.43010343]
[1763633316828,11.12052739,141.67,141.65,0.69]
[1763633317142,25.17917571,141.68,141.65,0.69]
[1763633317143,29.24148739,141.68,141.65,0.69]
[1763633317338,11.12052739,141.67,141.65,0.69]
[1763633318511,18.12096,141.68,141.65,11.81052739]
[1763633318715,29.24148739,141.71,141.67,11.12052739]
[1763633318916,18.17731014,141.71,141.68,1.68]
[1763633319119,11.12052739,141.69,141.68,1.68]
[1763633319415,11.12052739,141.69,141.67,2.37]
[1763633319620,11.12052739,141.69,141.67,1.68]
[1763633319822,11.12052739,141.69,141.67,2.37]
[1763633320614,11.12052739,141.7,141.67,2.37]
[1763633320818,18.17731014,141.71,141.68,0.69]
[1763633321420,36.29827014,141.71,141.68,0.69]
[1763633322545,18.12096,141.71,141.68,0.69]
[1763633323460,18.17629758,141.73,141.68,18.86862292]
[1763633323640,36.29684871,141.74,141.69,11.81052739]
[1763633323955,36.29684871,141.74,141.7,12.80052739]
[1763633324146,36.29684871,141.74,141.7,13.49052739]
[1763633324346,36.29684871,141.74,141.71,0.69]
[1763633324656,18.12096,141.74,141.71,11.81052739]
[1763633324856,11.12052739,141.73,141.7,1.68]
[1763633325159,11.12052739,141.73,141.7,2.37]
[1763633325534,11.12052739,141.73,141.7,0.69]
[1763633325732,25.88616082,141.74,141.7,0.69]
[1763633325733,36.29668821,141.74,141.71,0.69]
[1763633325932,18.17540097,141.75,141.71,11.81052739]
[1763633326352,18.17540097,141.75,141.72,0.69]
[1763633326528,7.05487358,141.75,141.72,0.69]
[1763633327218,14.23428898,141.75,141.72,0.69]
[1763633327474,14.94428898,141.75,141.7,16.60651662]
[1763633327640,7.1794154,141.73,141.7,0.69]
[1763633327835,7.1794154,141.73,141.71,1.68]
[1763633329371,14.23517247,141.73,141.71,1.68]
[1763633329678,7.05575707,141.73,141.71,1.68]
[1763633329882,14.94479235,141.74,141.71,1.68]
[1763633330353,14.93479235,141.74,141.7,2.37]
[1763633330553,0.7,141.73,141.7,2.37]
[1763633330745,14.93479235,141.74,141.7,2.37]
[1763633331076,7.05537695,141.74,141.71,0.69]
[1763633331373,14.23422085,141.75,141.71,0.69]
[1763633331570,14.93422085,141.75,141.71,0.69]
[1763633331977,32.57090515,141.75,141.71,0.69]
[1763633332173,7.1794154,141.74,141.71,0.69]
[1763633332680,7.8794154,141.74,141.7,1.68]
[1763633332859,18.12096,141.68,141.64,0.69]
[1763633333174,18.12096,141.68,141.64,5.05427768]
[1763633333339,2.68427768,141.66,141.63,1e-08]
[1763633333536,2.68427768,141.65,141.63,1e-08]
[1763633333757,2.68427768,141.64,141.63,1e-08]
[1763633333976,2.68427768,141.65,141.63,1e-08]
[1763633334563,7.05937173,141.66,141.63,5.05427769]
[1763633334870,31.56755183,141.68,141.64,7.07835326]
[1763633335267,31.56755183,141.68,141.65,0.69]
[1763633335562,6.38835326,141.67,141.65,0.69]
[1763633336991,6.38835326,141.66,141.65,0.69]
[1763633337295,6.38835326,141.67,141.65,0.69]
[1763633337793,6.38835326,141.66,141.63,2.37000001]
[1763633337981,6.38835326,141.65,141.63,1.68000001]
[1763633338174,6.38835326,141.65,141.64,0.69]
[1763633338573,6.38835326,141.65,141.64,2.37]
[1763633338775,7.05909574,141.67,141.64,2.37]
[1763633339084,6.38835326,141.66,141.64,2.37]
[1763633339468,6.38835326,141.66,141.64,1.68]
[1763633339665,6.38835326,141.65,141.64,1.68]
[1763633340061,13.44800733,141.65,141.64,1.68]
[1763633340662,7.05965407,141.65,141.64,1.68]
[1763633340894,13.44769287,141.66,141.64,1.68]
[1763633342167,6.38835326,141.66,141.64,2.37]
[1763633342673,6.38835326,141.66,141.64,0.69]
[1763633342987,6.38835326,141.66,141.64,2.37]
[1763633343885,6.38835326,141.66,141.64,1.68]
[1763633344063,6.38835326,141.66,141.63,1e-08]
[1763633344266,6.38835326,141.65,141.63,2.37000001]
[1763633344692,24.50931326,141.64,141.63,1e-08]
[1763633344906,25.20931326,141.64,141.63,1e-08]
[1763633345062,24.50931326,141.64,141.63,1e-08]
[1763633345267,6.38835326,141.64,141.63,1e-08]
[1763633346595,13.44850575,141.64,141.63,1e-08]
[1763633347191,6.38835326,141.64,141.63,1e-08]
[1763633347572,13.44850575,141.64,141.63,1e-08]
[1763633348401,7.06015249,141.64,141.63,1e-08]
[1763633348974,13.44817277,141.65,141.63,1e-08]
[1763633349486,6.38835326,141.64,141.63,1e-08]
[1763633351304,13.44850575,141.64,141.63,1e-08]
[1763633351502,7.06015249,141.64,141.63,1e-08]
[1763633355027,7.05970364,141.65,141.63,0.69000001]
[1763633355381,13.4480569,141.65,141.63,1e-08]
[1763633355900,13.4480569,141.65,141.63,0.69000001]
[1763633356094,7.08835326,141.64,141.63,1e-08]
[1763633356293,18.12096,141.62,141.56,0.69]
[1763633356604,18.12096,141.62,141.55,0.1]
[1763633356605,6.38835326,141.57,141.55,0.1]
[1763633356813,18.12096,141.59,141.55,0.1]
[1763633356814,20.80950816,141.56,141.55,0.1]
[1763633357178,21.50950816,141.56,141.55,0.1]
[1763633357874,31.29833585,141.56,141.55,0.1]
[1763633358588,38.36247826,141.56,141.55,0.1]
[1763633358771,42.07652681,141.56,141.55,0.1]
[1763633360108,59.73688284,141.56,141.53,0.1]
[1763633360275,6.40259671,141.54,141.53,0.1]
[1763633360479,23.25656499,141.54,141.53,0.1]
[1763633360690,23.90656499,141.54,141.53,0.1]
[1763633364078,27.90978769,141.51,141.48,0.1]
[1763633364279,73.50888848,141.54,141.39,0.66]
[1763633364280,18.12096,141.42,141.39,0.66]
[1763633364980,18.12096,141.44,141.39,7.73260964]
[1763633365190,18.12096,141.44,141.39,0.66]
[1763633365488,0.65,141.49,141.4,0.66]
[1763633365687,27.90978769,141.48,141.4,0.66]
[1763633365894,12.11882769,141.51,141.42,6.40259671]
[1763633366086,19.18554,141.51,141.42,6.40259671]
[1763633366289,6.40259671,141.45,141.43,0.66]
[1763633366799,6.40259671,141.46,141.43,0.66]
[1763633366983,18.12096,141.47,141.43,0.66]
[1763633367189,6.40259671,141.46,141.43,0.66]
[1763633367407,6.40259671,141.47,141.43,7.73056474]
[1763633367820,24.52355671,141.47,141.44,0.66]
[1763633368184,18.12096,141.47,141.44,0.66]
[1763633368505,24.52355671,141.47,141.44,0.66]
[1763633369698,24.52355671,141.47,141.44,7.73004264]
[1763633369897,19.34736339,141.51,141.44,14.13263935]
[1763633369898,18.12096,141.48,141.44,14.13263935]
[1763633370115,18.12096,141.48,141.45,0.71]
[1763633370689,24.52355671,141.48,141.45,0.71]
[1763633371694,24.52355671,141.48,141.45,7.77947806]
[1763633371889,24.52355671,141.49,141.45,7.77947806]
[1763633372223,31.59121518,141.49,141.46,0.71]
[1763633372597,31.59137054,141.49,141.46,2.39]
[1763633373117,6.40259671,141.48,141.47,0.71]
[1763633374219,16.9114244,141.48,141.42,0.71]
[1763633374518,6.40259671,141.44,141.42,0.71]
[1763633375622,6.40259671,141.44,141.36,47.09487792]
[1763633375623,9.78882769,141.42,141.36,2.64593088]
[1763633375801,18.12096,141.37,141.36,2.64593088]
[1763633376129,18.12096,141.37,141.36,1.93593088]
[1763633376296,24.52355671,141.37,141.36,1.93593088]
[1763633376811,31.59719326,141.37,141.36,1.93593088]
[1763633377191,41.38602095,141.37,141.36,1.93593088]
[1763633377540,42.10602095,141.37,141.36,1.93593088]
[1763633377701,43.80602095,141.37,141.36,1.93593088]
[1763633378023,42.10602095,141.37,141.36,1.93593088]
[1763633378318,43.80602095,141.37,141.36,1.93593088]
[1763633380298,9.78882769,141.32,141.3,0.1545773]
[1763633380506,6.40259671,141.31,141.3,0.1545773]
[1763633380902,13.47923672,141.31,141.3,0.1545773]
[1763633382204,6.40259671,141.31,141.3,0.8645773]
[1763633382518,6.40259671,141.32,141.3,0.8645773]
[1763633383025,7.07413695,141.36,141.3,7.94166497]
[1763633383230,18.12096,141.33,141.3,7.94166497]
[1763633383531,6.40259671,141.32,141.31,0.71]
[1763633383718,27.90978769,141.35,141.31,0.71]
[1763633384240,6.40259671,141.33,141.31,0.71]
[1763633386747,34.98446442,141.35,141.31,0.71]
[1763633387033,29.29793556,141.35,141.31,7.78628031]
[1763633387202,36.37260121,141.35,141.31,7.07628031]
[1763633387403,29.29793556,141.35,141.31,7.07628031]
[1763633388529,11.17697556,141.35,141.31,7.07628031]
[1763633388729,11.17697556,141.36,141.32,1.7]
[1763633388932,7.07319623,141.38,141.32,1.7]
[1763633389233,19.82096,141.39,141.32,1.7]
[1763633389234,11.17697556,141.36,141.33,0.71]
[1763633390013,11.17697556,141.35,141.33,0.71]
[1763633390728,7.07418315,141.36,141.3,0.1545773]
[1763633390729,11.17697556,141.34,141.3,0.1545773]
[1763633390929,11.17697556,141.33,141.3,0.1545773]
[1763633391134,11.17697556,141.33,141.3,7.88170871]
[1763633391329,11.17697556,141.33,141.3,0.8045773]
[1763633391504,7.07547362,141.34,141.3,0.8045773]
[1763633391703,11.17697556,141.34,141.3,7.88169161]
[1763633392125,11.17697556,141.34,141.31,0.65]
[1763633392326,11.17697556,141.35,141.31,2.35]
[1763633392505,11.17697556,141.35,141.32,0.65]
[1763633392715,11.17697556,141.36,141.32,0.65]
[1763633393112,11.17697556,141.38,141.33,7.07563857]
[1763633393434,11.17697556,141.39,141.33,7.07563857]
[1763633393735,11.17697556,141.39,141.34,0.65]
[1763633393932,11.17697556,141.39,141.35,1.7]
[1763633394441,11.17697556,141.39,141.36,0.65]
[1763633395235,18.24962114,141.39,141.36,0.65]
[1763633395841,7.78264558,141.39,141.34,9.42506886]
[1763633396047,11.17697556,141.37,141.35,0.65]
[1763633396234,7.78264558,141.39,141.19,11.77528214]
[1763633396235,1.99999999,141.33,141.19,11.77528214]
[1763633396439,11.17697556,141.24,141.19,0.65]
[1763633396733,3.69485448,141.26,141.2,53.35821528]
[1763633396931,3.69485448,141.26,141.21,0.65]
[1763633397133,14.87183004,141.26,141.22,7.08114997]
[1763633397336,14.87183004,141.26,141.23,1.7]
[1763633397643,14.87183004,141.26,141.23,0.65]
[1763633397820,14.87183004,141.26,141.24,0.65]
[1763633399421,14.87183004,141.26,141.22,8.78114997]
[1763633399422,21.95114252,141.26,141.22,1.7]
[1763633399620,10.77416696,141.26,141.23,0.65]
[1763633399821,11.17697556,141.25,141.23,0.65]
[1763633400054,3.69485448,141.26,141.23,0.65]
[1763633401257,3.69485448,141.26,141.23,7.73015442]
[1763633401663,3.69485448,141.26,141.24,61.82697556]
[1763633402022,3.69485448,141.26,141.25,0.65]
[1763633402425,3.69485448,141.26,141.25,13.52697556]
[1763633402731,11.17697556,141.32,141.25,13.52697556]
[1763633402946,11.17697556,141.34,141.27,11.17697556]
[1763633403127,11.17697556,141.36,141.29,11.17697556]
[1763633403328,7.07367884,141.37,141.3,7.72714083]
[1763633403522,11.17697556,141.36,141.31,1.7]
[1763633403752,11.17697556,141.36,141.31,0.65]
[1763633403928,18.2506544,141.37,141.32,2.35]
[1763633404325,17.68320883,141.38,141.33,0.65]
[1763633404326,18.25011941,141.38,141.33,0.65]
[1763633405228,7.07413695,141.36,141.33,0.65]
[1763633405948,18.25025823,141.38,141.33,7.7255215]
[1763633406130,11.17697556,141.4,141.33,7.7255215]
[1763633406328,11.17697556,141.41,141.34,11.82697556]
[1763633406530,11.17697556,141.4,141.35,1.7]
[1763633406730,17.67790685,141.42,141.33,7.0755215]
[1763633406731,18.83096,141.39,141.36,1.7]
[1763633406933,11.17697556,141.37,141.35,1.7]
[1763633407129,11.17697556,141.36,141.35,1.7]
[1763633407556,18.25111251,141.36,141.35,1.7]
[1763633408150,18.25111251,141.36,141.34,1.7]
[1763633408331,11.17697556,141.35,141.34,1.7]
[1763633409344,7.07413695,141.36,141.34,1.7]
[1763633409522,18.25161298,141.35,141.34,1.7]
[1763633411629,17.74620558,141.37,141.34,1.7]
[1763633411826,0.0612041,141.37,141.34,1.7]
[1763633412029,11.23817966,141.37,141.35,0.65]
[1763633413041,0.0612041,141.37,141.35,0.65]
[1763633413239,11.23817966,141.37,141.35,0.65]
[1763633413758,0.0612041,141.37,141.35,0.65]
[1763633413942,7.1348411,141.37,141.35,0.65]
[1763633414452,18.31181666,141.37,141.35,0.65]
[1763633414647,7.1348411,141.37,141.35,0.65]
[1763633414842,18.31181666,141.37,141.35,0.65]
[1763633415242,11.17697556,141.36,141.32,0.65]
[1763633415550,7.8448411,141.37,141.33,1.7]
[1763633415551,11.17697556,141.35,141.33,1.7]
[1763633415932,18.25193379,141.35,141.34,1.7]
[1763633416647,0.0612041,141.37,141.34,2.35]
[1763633416850,0.0612041,141.37,141.35,0.65]
[1763633417656,0.0612041,141.37,141.36,7.07413695]
[1763633418049,0.0612041,141.37,141.36,18.90111251]
[1763633419537,0.0612041,141.37,141.36,2.35]
[1763633419760,0.0612041,141.37,141.36,9.42413695]
[1763633419955,0.0612041,141.37,141.36,20.60111251]
[1763633421564,0.0612041,141.37,141.36,70.60111251]
[1763633421738,0.0612041,141.37,141.36,71.3085262]
[1763633422362,0.0612041,141.37,141.36,21.3085262]
[1763633423361,0.0612041,141.37,141.36,71.3085262]
[1763633423765,0.0612041,141.37,141.36,131.09735389]
[1763633424947,0.0612041,141.37,141.36,81.09735389]
[1763633425152,0.0612041,141.37,141.36,60.13155064]
[1763633426475,0.0612041,141.37,141.36,71.3085262]
[1763633426644,0.0612041,141.37,141.36,8.43155064]
[1763633426965,0.0612041,141.37,141.36,9.42413695]
[1763633427748,0.0612041,141.37,141.36,20.60111251]
[1763633428163,0.0612041,141.37,141.36,7.72413695]
[1763633428466,0.0612041,141.37,141.36,7.07413695]
[1763633428769,0.0612041,141.37,141.36,8.77413695]
[1763633428971,0.0612041,141.37,141.36,7.78413695]
[1763633429265,0.0612041,141.37,141.36,9.48413695]
[1763633429767,0.66,141.46,141.38,7.07313622]
[1763633429950,11.17697556,141.45,141.39,1.7]
[1763633430153,11.17697556,141.45,141.39,2.41]
[1763633430360,11.17697556,141.45,141.4,0.71]
[1763633430664,0.66,141.46,141.4,0.71]
[1763633430860,11.17697556,141.45,141.4,0.71]
[1763633431255,11.83697556,141.45,141.4,0.71]
[1763633431647,11.83697556,141.45,141.41,7.07163566]
[1763633431952,9.78882769,141.5,141.42,1.7]
[1763633432163,11.83697556,141.45,141.42,1.7]
[1763633433072,11.17697556,141.43,141.38,18.39180629]
[1763633433367,11.17697556,141.41,141.38,17.68180629]
[1763633433564,11.17697556,141.41,141.39,1.7]
[1763633433755,18.12096,141.47,141.34,68.39774575]
[1763633433756,11.83697556,141.4,141.34,68.39774575]
[1763633433955,11.83697556,141.4,141.35,9.48463742]
[1763633434158,11.83697556,141.4,141.35,27.17123098]
[1763633434357,11.83697556,141.4,141.36,0.71]
[1763633434553,11.83697556,141.4,141.37,1.7]
[1763633434956,11.83697556,141.39,141.37,1.7]
[1763633435173,7.07180265,141.41,141.37,2.41]
[1763633435174,11.17697556,141.4,141.37,2.41]
[1763633435378,11.17697556,141.39,141.37,1.7]
[1763633435561,11.83697556,141.4,141.37,8.7733712]
[1763633439477,11.17697556,141.38,141.33,7.78556186]
[1763633439670,11.17697556,141.37,141.34,1.7]
[1763633439874,11.17697556,141.37,141.34,2.41]
[1763633440861,24.74722477,141.43,141.34,2.41]
[1763633440862,0.66,141.4,141.35,0.71]
[1763633441178,11.17697556,141.38,141.35,0.71]
[1763633441351,11.17697556,141.38,141.35,7.78414329]
[1763633441558,11.17697556,141.37,141.35,7.78414329]
[1763633441855,11.17697556,141.37,141.36,1.7]
[1763633442055,11.17697556,141.38,141.36,1.7]
[1763633443257,11.17697556,141.37,141.36,1.7]
[1763633443453,0.66,141.41,141.36,9.48413695]
[1763633443767,11.17697556,141.38,141.36,8.77413695]
[1763633444165,11.17697556,141.37,141.32,0.71]
[1763633444474,11.17697556,141.36,141.33,2.41]
[1763633444670,11.17697556,141.37,141.34,0.71]
[1763633445480,11.17697556,141.37,141.34,7.78480068]
[1763633445978,11.17697556,141.38,141.35,0.71]
[1763633446179,11.17697556,141.38,141.36,1.7]
[1763633446978,7.7326763,141.39,141.34,7.07480068]
[1763633446979,7.0726763,141.39,141.34,7.07480068]
[1763633447180,6.41585877,141.38,141.35,1.7]
[1763633447480,0.66,141.38,141.35,8.77450739]
[1763633447679,6.41585877,141.37,141.35,8.77450739]
[1763633449279,7.07585877,141.38,141.35,8.77450739]
[1763633449486,6.41585877,141.38,141.35,9.48450739]
[1763633449872,7.73222338,141.4,141.35,8.77450739]
[1763633450066,7.07585877,141.4,141.36,0.71]
[1763633450372,6.41585877,141.39,141.36,0.71]
[1763633450887,7.11585877,141.38,141.37,1.7]
[1763633451787,14.18906191,141.38,141.33,7.07515664]
[1763633451960,14.18906191,141.38,141.34,1.7]
[1763633451961,6.41585877,141.35,141.34,1.7]
[1763633452461,6.41585877,141.36,141.34,1.7]
[1763633453258,6.41585877,141.36,141.34,8.77505887]
[1763633454060,0.7,141.37,141.34,8.77505887]
[1763633454281,6.41585877,141.36,141.34,8.77505887]
[1763633454467,7.11585877,141.37,141.34,8.77505887]
[1763633454667,7.11585877,141.37,141.34,9.46505887]
[1763633454871,10.77958048,141.4,141.34,27.15290378]
[1763633455068,10.77958048,141.4,141.35,0.69]
[1763633455069,2.69489512,141.39,141.35,0.69]
[1763633455373,2.69489512,141.39,141.36,7.07413695]
[1763633455575,3.39489512,141.39,141.37,1.7]
[1763633456971,2.69489512,141.39,141.37,8.77354023]
[1763633457169,2.69489512,141.39,141.37,9.46354023]
[1763633457567,2.69489512,141.39,141.37,8.77354023]
[1763633458165,2.69489512,141.39,141.37,1.7]
[1763633458583,3.39489512,141.38,141.32,0.69]
[1763633458768,3.39489512,141.38,141.33,8.77550736]
[1763633458769,2.69489512,141.35,141.33,8.77550736]
[1763633459185,2.69489512,141.36,141.33,9.46550736]
[1763633459689,2.69489512,141.36,141.33,27.1546038]
[1763633459891,28.45991994,141.4,141.34,0.69]
[1763633459892,0.7,141.4,141.34,0.69]
[1763633460068,0.7,141.4,141.35,1.7]
[1763633460069,2.69489512,141.37,141.35,1.7]
[1763633460782,2.69489512,141.37,141.35,8.7745445]
[1763633461986,3.39489512,141.38,141.35,8.7745445]
[1763633462811,18.12096,141.42,141.35,8.7745445]
[1763633462975,2.69489512,141.39,141.36,0.69]
[1763633463300,2.69489512,141.39,141.35,8.7745445]
[1763633463596,3.39489512,141.39,141.35,9.4645445]
[1763633464379,2.69489512,141.39,141.35,9.4645445]
[1763633464595,3.39489512,141.39,141.35,9.4645445]
[1763633465183,0.7,141.38,141.35,8.7745445]
[1763633465389,0.7,141.38,141.35,9.4645445]
[1763633466287,3.39489512,141.38,141.35,1.7]
[1763633466591,3.39489512,141.38,141.35,9.4644682]
[1763633468404,0.7,141.38,141.35,9.4644682]
[1763633469093,2.69489512,141.39,141.36,0.69]
[1763633469299,3.39489512,141.39,141.36,0.69]
[1763633469490,3.39489512,141.39,141.35,8.7744682]
[1763633469801,3.39489512,141.39,141.35,9.4644682]
[1763633470177,3.39489512,141.39,141.35,12.15936332]
[1763633470592,2.69489512,141.39,141.35,12.15936332]
[1763633470791,2.69489512,141.39,141.34,17.68735453]
[1763633470792,2.69489512,141.37,141.33,7.0755928]
[1763633471012,2.69489512,141.37,141.34,1.7]
[1763633471388,0.7,141.36,141.32,7.07591145]
[1763633471607,2.69489512,141.37,141.33,5.08489512]
[1763633471908,0.7,141.36,141.33,2.39]
[1763633472490,2.69489512,141.37,141.34,0.69]
[1763633472692,2.69489512,141.37,141.33,4.39489512]
[1763633472693,3.39489512,141.37,141.33,5.08489512]
[1763633473209,18.12096,141.39,141.35,7.07463742]
[1763633473386,2.69489512,141.38,141.36,1.7]
[1763633473786,3.39489512,141.38,141.36,1.7]
[1763633474408,3.39489512,141.37,141.36,1.7]
[1763633475905,2.69489512,141.37,141.36,1.7]
[1763633476101,9.76829161,141.38,141.36,1.7]
[1763633476303,10.46829161,141.38,141.36,1.7]
[1763633477014,3.39489512,141.37,141.36,1.7]
[1763633478215,2.69489512,141.37,141.36,1.7]
[1763633479297,10.46829161,141.38,141.36,1.7]
[1763633480599,3.35489512,141.37,141.31,5.87245593]
[1763633480805,2.69489512,141.35,141.32,1.7]
[1763633481205,0.66,141.34,141.32,1.7]
[1763633481603,3.35489512,141.34,141.32,1.7]
[1763633482636,0.66,141.37,141.33,3.35489512]
[1763633482911,3.35489512,141.39,141.34,0.66]
[1763633483120,0.66,141.38,141.35,1.7]
[1763633483300,3.35489512,141.38,141.35,1.7]
[1763633484214,10.4280612,141.38,141.35,1.7]
[1763633485217,0.66,141.37,141.34,7.73472499]
[1763633485423,0.66,141.37,141.36,1.7]
[1763633485809,2.69489512,141.38,141.36,1.7]
[1763633486114,0.66,141.37,141.36,1.7]
[1763633486519,9.7680444,141.38,141.36,1.7]
[1763633486720,10.4280444,141.38,141.36,1.7]
[1763633487329,3.35489512,141.38,141.36,1.7]
[1763633487529,9.76763868,141.39,141.36,1.7]
[1763633487736,10.42763868,141.39,141.36,1.7]
[1763633487908,10.42763868,141.39,141.36,8.77406566]
[1763633488109,0.66,141.38,141.36,1.7]
[1763633488535,0.66,141.41,141.37,0.66]
[1763633488732,0.71,141.4,141.36,9.44401925]
[1763633489336,3.40489512,141.4,141.36,9.44401925]
[1763633489536,3.40489512,141.4,141.35,2.69489512]
[1763633489537,2.69489512,141.39,141.35,7.07442277]
[1763633489741,0.71,141.39,141.36,1.7]
[1763633489903,3.40489512,141.39,141.36,1.7]
[1763633490721,10.47765401,141.39,141.36,1.7]
[1763633491741,0.71,141.39,141.36,9.44405845]
[1763633494037,10.47762557,141.39,141.36,8.77405845]
[1763633494234,17.68712534,141.38,141.36,8.77405845]
[1763633494932,17.68712534,141.38,141.36,9.44405845]
[1763633495337,17.68712534,141.38,141.36,1.7]
[1763633495540,17.68712534,141.38,141.36,2.37]
[1763633495925,17.68712534,141.38,141.36,9.44403815]
[1763633496424,20.81585512,141.41,141.37,0.67]
[1763633496750,17.68712534,141.4,141.37,0.67]
[1763633497714,27.46371482,141.45,141.38,2.69489512]
[1763633497924,2.69489512,141.43,141.39,1.7]
[1763633498129,17.68601366,141.41,141.39,1.7]
[1763633498619,18.39601366,141.41,141.39,1.7]
[1763633500032,25.4676728,141.41,141.39,1.7]
[1763633500645,28.16256792,141.41,141.39,1.7]
[1763633501027,27.45256792,141.41,141.39,1.7]
[1763633501232,3.40489512,141.4,141.35,0.67]
[1763633501428,2.69489512,141.38,141.36,1.7]
[1763633501743,2.69489512,141.38,141.34,7.74495137]